[Event "Almaty Open 2019"]
[Site "Almaty"]
[Date "2019.10.08"]
[Round "3.14"]
[White "Igen, Amir"]
[Black "Sisabayev, Kuanysh"]
[Result "0-1"]
[ECO "E12"]
[WhiteElo "1934"]
[BlackElo "2289"]
[Annotator "RC"]
[PlyCount "148"]
[EventDate "2019.10.07"]
[EventType "swiss"]
[EventCountry "KAZ"]
[SourceTitle "playchess.com"]
[Source "ChessBase"]
[SourceQuality "1"]
[TimeControl "5400+30"]

1. d4 {[%emt 0:00:00]} Nf6 {[%emt 0:00:00]} 2. c4 {[%emt 0:00:00]} e6 {[%emt 0:00:00]} 3. Nf3 {[%emt 0:00:00]} b6 {[%emt 0:00:16]} 4. Bf4 {[%emt 0:00:00]} Bb7 {[%emt 0:00:21]} 5. e3 {[%emt 0:00:05]} Be7 {[%emt 0:02:17]} 6. Bd3 {[%emt 0:00:20]} Nh5 {[%emt 0:00:51]} 7. Bg3 {[%emt 0:00:26]} f5 {[%emt 0:01:11]} 8. Nc3 {[%emt 0:01:04]} O-O {[%emt 0:00:27]} 9. Qc2 {[%emt 0:00:27]} g6 {[%emt 0:05:23]} 10. O-O-O {[%emt 0:01:59]} d6 {[%emt 0:00:49]} 11. Rhg1 {[%emt 0:03:19]} Nd7 {[%emt 0:04:32]} 12. Nd2 {[%emt 0:00:15]} c5 {[%emt 0:03:40]} 13. f3 {[%emt 0:01:31]} Nxg3 {[%emt 0:01:53]} 14. hxg3 {[%emt 0:00:07]} cxd4 {[%emt 0:02:27]} 15. exd4 {[%emt 0:00:07]} Bf6 {[%emt 0:00:19]} 16. Ne2 {[%emt 0:01:42]} e5 {[%emt 0:02:54]} 17. dxe5 {[%emt 0:03:49]} Nxe5 {[%emt 0:03:00]} 18. Nf4 {[%emt 0:00:13]} Qd7 {[%emt 0:00:19]} 19. Kb1 {[%emt 0:01:59]} Rac8 {[%emt 0:00:48]} 20. Qb3 {[%emt 0:01:00]} Qf7 {[%emt 0:00:13]} 21. Be2 {[%emt 0:05:33]} Nc6 {[%emt 0:08:47]} 22. Nd5 {[%emt 0:00:49]} Bg7 {[%emt 0:00:22]} 23. Bd3 {[%emt 0:03:40]} Na5 {[%emt 0:03:58]} 24. Qa3 {[%emt 0:03:15]} Bxd5 {[%emt 0:02:00]} 25. cxd5 {[%emt 0:00:13]} Qxd5 {[%emt 0:00:35]} 26. Ba6 {[%emt 0:01:13]} Rc7 {[%emt 0:03:20]} 27. Ne4 {[%emt 0:01:20]} Qe5 {[%emt 0:01:13]} 28. Nxd6 {[%emt 0:00:10]} Qxg3 {[%emt 0:02:45]} 29. Nb5 {[%emt 0:05:28]} Rcf7 {[%emt 0:08:25]} 30. Nd6 {[%emt 0:06:10]} Rd7 {[%emt 0:00:33]} 31. Qb4 {[%emt 0:01:21]} h5 {[%emt 0:03:37]} 32. Bb5 {[%emt 0:03:32]} Rdd8 {[%emt 0:04:01]} 33. Qe1 {[%emt 0:04:24]} Qh2 {[%emt 0:07:40]} 34. Qe6+ {[%emt 0:02:59]} Kh7 {[%emt 0:01:12]} 35. Qe7 {[%emt 0:00:44]} Qe5 {[%emt 0:10:03]} 36. Qxe5 {[%emt 0:00:40]} Bxe5 {[%emt 0:00:08]} 37. Nc4 {[%emt 0:00:04]} Nxc4 {[%emt 0:00:59]} 38. Bxc4 {[%emt 0:00:07]} Bg3 {[%emt 0:00:33]} 39. Rxd8 {[%emt 0:03:04]} Rxd8 {[%emt 0:02:18]} 40. Kc2 {[%emt 0:00:06]} Kh6 {[%emt 0:01:27]} 41. Rd1 {[%emt 0:00:22]} Rc8 {[%emt 0:00:12]} 42. Kd3 {[%emt 0:00:04]} Kg5 {[%emt 0:00:21]} 43. b3 {[%emt 0:00:20]} Re8 {[%emt 0:00:57]} 44. Rd2 {[%emt 0:00:45]} Kf4 {[%emt 0:01:33]} 45. Bf7 {[%emt 0:00:37]} Re3+ {[%emt 0:01:48]} 46. Kd4 {[%emt 0:00:05]} Be1 {[%emt 0:01:02]} 47. Rc2 {[%emt 0:00:03]} h4 {[%emt 0:04:37]} 48. Bxg6 {[%emt 0:00:26]} Re6 {[%emt 0:00:21]} 49. Bh7 {[%emt 0:02:56]} Rd6+ {[%emt 0:00:19]} 50. Kc4 {[%emt 0:00:05]} Bd2 {[%emt 0:00:45]} 51. Kb5 {[%emt 0:03:43]} Kg3 {[%emt 0:03:58]} 52. Bxf5 {[%emt 0:00:52]} Kxg2 {[%emt 0:00:31]} 53. Ka6 {[%emt 0:00:50]} Kxf3 {[%emt 0:01:08]} 54. Kxa7 {[%emt 0:00:13]} Be3 {[%emt 0:00:53]} 55. Ka6 {[%emt 0:02:17]} Kg3 {[%emt 0:01:33]} 56. a4 {[%emt 0:03:42]} b5+ {[%emt 0:01:49]} 57. Kb7 {[%emt 0:00:06]} Rf6 {[%emt 0:00:32]} 58. Rc3 {[%emt 0:04:11]} Rxf5 {[%emt 0:00:21]} 59. Rxe3+ {[%emt 0:00:05]} Rf3 {[%emt 0:00:41]} 60. Re5 {[%emt 0:00:47]} b4 {[%emt 0:00:30]} 61. a5 {[%emt 0:03:21]} Rxb3 {[%emt 0:00:12]} 62. a6 {[%emt 0:00:02]} h3 {[%emt 0:00:45]} 63. a7 {[%emt 0:00:59]} h2 {[%emt 0:00:31]} 64. a8=Q {[%emt 0:00:29]} h1=Q+ {[%emt 0:00:09]} 65. Kb8 {[%emt 0:00:04]} Qh8+ {[%emt 0:00:15]} 66. Kb7 {[%emt 0:00:04]} Qxa8+ {[%emt 0:00:43]} 67. Kxa8 {[%emt 0:00:05]} Kf4 {[%emt 0:00:07]} 68. Re1 {[%emt 0:00:05]} Re3 {[%emt 0:00:10]} 69. Rb1 {[%emt 0:00:04]} b3 {[%emt 0:00:07]} 70. Kb7 {[%emt 0:00:14]} Ke4 {[%emt 0:00:09]} 71. Kb6 {[%emt 0:00:30]} Kd4 {[%emt 0:00:16]} 72. Kb5 {[%emt 0:01:11]} Kc3 {[%emt 0:00:12]} 73. Ka4 {[%emt 0:01:28]} b2 {[%emt 0:00:28]} 74. Ka3 {[%emt 0:00:07]} Kc2+ {[%emt 0:00:06] Rh1} 0-1